bitfinex/quotes_BTCUSD_20250705
["timestamp","ask_amount","ask_price","bid_price","bid_amount"]
[1751692318046,0.10087672,108230.0,108220.0,0.30280609]
[1751692318249,0.09163714,108230.0,108220.0,0.30280609]
[1751692318459,0.10087663,108230.0,108220.0,0.30280609]
[1751692319486,0.10087663,108230.0,108220.0,0.31204601]
[1751692320475,0.10087663,108230.0,108220.0,0.30280609]
[1751692321064,0.08239773,108230.0,108220.0,0.31204592]
[1751692321284,0.08239773,108230.0,108220.0,0.59055366]
[1751692321481,0.07315841,108230.0,108220.0,0.59055366]
[1751692322203,0.08239782,108230.0,108220.0,0.59055366]
[1751692322431,0.08239782,108230.0,108220.0,0.58131383]
[1751692322748,0.08239782,108230.0,108220.0,0.59979358]
[1751692322953,0.07315841,108230.0,108220.0,0.59979358]
[1751692323245,0.07315832,108230.0,108220.0,0.59979358]
[1751692323373,0.06391917,108230.0,108220.0,0.59979358]
[1751692323594,0.06391917,108230.0,108220.0,0.87830132]
[1751692323595,0.02218019,108230.0,108220.0,0.87830132]
[1751692323811,0.03141908,108230.0,108220.0,0.87830132]
[1751692324073,0.03141908,108230.0,108220.0,0.59979358]
[1751692325078,0.04731908,108230.0,108220.0,0.59979358]
[1751692325863,0.05655815,108230.0,108220.0,0.32128584]
[1751692326052,0.04731908,108230.0,108220.0,0.59979358]
[1751692326251,0.07215815,108230.0,108220.0,0.59979358]
[1751692327467,0.06291908,108230.0,108220.0,0.59979358]
[1751692327671,0.07215806,108230.0,108220.0,0.59979358]
[1751692329139,0.08139713,108230.0,108220.0,0.59979358]
[1751692329300,0.08139713,108230.0,108220.0,0.59371349]
[1751692330189,0.09063628,108230.0,108220.0,0.60295358]
[1751692333426,0.09063149,108230.0,108220.0,0.60295358]
[1751692336592,0.09063149,108230.0,108220.0,0.32444584]
[1751692336803,0.09063149,108230.0,108220.0,0.60295358]
[1751692338042,0.09987081,108230.0,108220.0,0.60295358]
[1751692338258,0.09063149,108230.0,108220.0,0.60295358]
[1751692340247,0.09987081,108230.0,108220.0,0.32444584]
[1751692340462,0.09063149,108230.0,108220.0,0.60295358]
[1751692345225,0.08139234,108230.0,108220.0,0.60295358]
[1751692345459,0.07215327,108230.0,108220.0,0.60295358]
[1751692345658,0.06291429,108230.0,108220.0,0.61398043]
[1751692345943,0.06291429,108230.0,108220.0,0.89248817]
[1751692346287,0.0536754,108230.0,108220.0,0.89248817]
[1751692346487,0.03141421,108230.0,108220.0,0.61398043]
[1751692346702,0.0221754,108230.0,108220.0,0.89248817]
[1751692347136,0.0221754,108230.0,108220.0,0.61398043]
[1751692349822,0.0380754,108230.0,108220.0,0.61398043]
[1751692350024,0.06241429,108230.0,108220.0,0.61398043]
[1751692350387,0.0531754,108230.0,108220.0,0.61398043]
[1751692350600,0.06241429,108230.0,108220.0,0.33547269]
[1751692350803,0.06241429,108230.0,108220.0,0.80010043]
[1751692351005,0.0531754,108230.0,108220.0,0.80010043]
[1751692351202,0.06241421,108230.0,108220.0,0.80010043]
[1751692353623,0.07165319,108230.0,108220.0,0.80010043]
[1751692354344,0.06241421,108230.0,108220.0,0.80010043]
[1751692354763,0.07165319,108230.0,108220.0,0.80010043]
[1751692357931,0.07165319,108230.0,108220.0,0.33547269]
[1751692358158,0.08089234,108230.0,108220.0,0.80010043]
[1751692358369,0.07165319,108230.0,108220.0,0.80010043]
[1751692361123,0.08089234,108230.0,108220.0,0.80010043]
[1751692361330,0.07165319,108230.0,108220.0,0.80010043]
[1751692362420,0.08089234,108230.0,108220.0,0.80010043]
[1751692363063,0.07165319,108230.0,108220.0,0.80010043]
[1751692364770,0.08089226,108230.0,108220.0,0.80010043]
[1751692368416,0.07165319,108230.0,108220.0,0.80010043]
[1751692369023,0.06241421,108230.0,108220.0,0.80010043]
[1751692369188,0.07165319,108230.0,108220.0,0.80010043]
[1751692369386,0.06241421,108230.0,108220.0,0.80010043]
[1751692369804,0.07165319,108230.0,108220.0,0.80010043]
[1751692370600,0.0716531,108230.0,108220.0,0.80010043]
[1751692373358,0.08089208,108230.0,108220.0,0.80010043]
[1751692374008,0.09013123,108230.0,108220.0,0.80010043]
[1751692374341,0.08089208,108230.0,108220.0,0.80010043]
[1751692375162,0.09013123,108230.0,108220.0,0.80010043]
[1751692376038,0.08089208,108230.0,108220.0,0.80010043]
[1751692377074,0.09013123,108230.0,108220.0,0.80010043]
[1751692377524,0.08089208,108230.0,108220.0,0.80010043]
[1751692379017,0.08089208,108230.0,108220.0,0.84526043]
[1751692383096,0.08089208,108230.0,108220.0,0.61398043]
[1751692383322,0.08089208,108230.0,108220.0,0.84518043]
[1751692383530,0.0716531,108230.0,108220.0,0.84518043]
[1751692385438,0.08089217,108230.0,108220.0,0.84518043]
[1751692385644,0.0716531,108230.0,108220.0,0.84518043]
[1751692385895,0.08089208,108230.0,108220.0,0.84518043]
[1751692386520,0.0716531,108230.0,108220.0,0.84518043]
[1751692386732,0.0531754,108230.0,108220.0,1.12368817]
[1751692386970,0.0221754,108230.0,108220.0,1.13822902]
[1751692387187,0.07295997,108240.0,108230.0,0.21250935]
[1751692387410,0.07295997,108240.0,108230.0,0.49002628]
[1751692387629,0.06372184,108240.0,108230.0,0.76853402]
[1751692388050,0.07295997,108240.0,108230.0,0.76853402]
[1751692388692,0.06372184,108240.0,108230.0,0.76853402]
[1751692388902,0.07395997,108240.0,108230.0,0.76853402]
[1751692389115,0.07495997,108240.0,108230.0,0.76853402]
[1751692389335,0.07495988,108240.0,108230.0,0.76853402]
[1751692389560,0.08419809,108240.0,108230.0,0.76853402]
[1751692389988,0.08319809,108240.0,108230.0,0.76853402]
[1751692390196,0.07395988,108240.0,108230.0,0.76853402]
[1751692390417,0.07395988,108240.0,108230.0,0.76953402]
[1751692390840,0.07295988,108240.0,108230.0,0.76953402]
[1751692391259,0.08219809,108240.0,108230.0,0.76953402]
[1751692391688,0.07295988,108240.0,108230.0,0.76953402]
[1751692392113,0.08219809,108240.0,108230.0,0.76953402]
[1751692392537,0.07295988,108240.0,108230.0,0.76953402]
[1751692392910,0.07295988,108240.0,108230.0,0.77053402]
[1751692393258,0.050776,108240.0,108230.0,0.77053402]
[1751692394106,0.0600143,108240.0,108230.0,0.48278747]
[1751692394320,0.34776059,108240.0,108230.0,0.49202662]
[1751692394523,0.34776059,108240.0,108230.0,0.50126569]
[1751692394963,0.34776051,108240.0,108230.0,0.50126569]
[1751692395185,0.34776051,108240.0,108230.0,0.49202662]
[1751692395385,0.35699906,108240.0,108230.0,0.49202662]
[1751692395785,0.07849132,108240.0,108230.0,0.49202662]
[1751692395990,0.06925268,108240.0,108230.0,0.5012656]
[1751692396234,0.07849123,108240.0,108230.0,0.49202662]
[1751692397505,0.35699897,108240.0,108230.0,0.49202662]
[1751692398520,0.35699897,108240.0,108230.0,0.50126569]
[1751692398729,0.07849123,108240.0,108230.0,0.50126569]
[1751692399138,0.07849123,108240.0,108230.0,0.49202662]
[1751692399635,0.07849123,108240.0,108230.0,0.48278747]
[1751692399848,0.07849123,108240.0,108230.0,0.49202671]
[1751692400479,0.07849123,108240.0,108230.0,0.50126586]
[1751692401070,0.07849199,108240.0,108230.0,0.49202671]
[1751692401888,0.06925327,108240.0,108230.0,0.49202671]
[1751692402043,0.06925327,108240.0,108230.0,0.50126586]
[1751692402265,0.06925327,108240.0,108230.0,0.49202671]
[1751692402820,0.06925327,108240.0,108230.0,0.50126586]
[1751692403041,0.06001472,108240.0,108230.0,0.50126586]
[1751692403242,0.05077617,108240.0,108230.0,0.51050484]
[1751692403443,0.05077617,108240.0,108230.0,0.78901258]
[1751692403645,0.06001447,108240.0,108230.0,0.78901267]
[1751692403868,0.06925294,108240.0,108230.0,0.78901207]
[1751692404286,0.06001447,108240.0,108230.0,0.78901207]
[1751692404487,0.06925294,108240.0,108230.0,0.78901207]
[1751692405141,0.06925294,108240.0,108230.0,0.77977309]
[1751692406017,0.06925294,108240.0,108230.0,0.78901207]
[1751692406695,0.06001447,108240.0,108230.0,0.78901207]
[1751692406900,0.06925294,108240.0,108230.0,0.78901207]
[1751692407105,0.06925285,108240.0,108230.0,0.78901207]
[1751692407385,0.53253584,108240.0,108230.0,0.27822857]
[1751692407595,0.55471972,108240.0,108230.0,0.47350798]
[1751692408623,0.37918387,108240.0,108230.0,0.4827473]
[1751692409863,0.37918387,108240.0,108230.0,0.47350798]
[1751692410068,0.37918387,108240.0,108230.0,0.4827473]
[1751692410281,0.37918387,108240.0,108230.0,0.47350798]
[1751692410687,0.37918387,108240.0,108230.0,0.4827473]
[1751692411312,0.36994566,108240.0,108230.0,0.47350798]
[1751692411730,0.36994566,108240.0,108230.0,0.46426857]
[1751692411939,0.36994566,108240.0,108230.0,0.48274747]
[1751692412566,0.54548193,108240.0,108230.0,0.47350806]
[1751692413010,0.8747657,108240.0,108230.0,0.46426857]
[1751692413238,0.6091652,108240.0,108230.0,0.27947693]
[1751692413875,0.88767294,108240.0,108230.0,0.46426857]
[1751692414085,0.6091652,108240.0,108230.0,0.46426857]
[1751692414290,0.51772827,108240.0,108230.0,0.46426857]
[1751692415335,0.23922053,108240.0,108230.0,0.46426857]
[1751692415547,0.52696682,108240.0,108230.0,0.48274764]
[1751692415999,0.52696682,108240.0,108230.0,0.49198705]
[1751692416187,0.52696682,108240.0,108230.0,0.48274764]
[1751692416814,0.53620512,108240.0,108230.0,0.49198705]
[1751692417031,0.36990706,108240.0,108230.0,0.49198705]
[1751692417280,0.36990706,108240.0,108230.0,0.50122637]
[1751692417487,0.37914578,108240.0,108230.0,0.50122637]
[1751692417898,0.37914578,108240.0,108230.0,0.49198705]
[1751692418122,0.37914578,108240.0,108230.0,0.50122637]
[1751692418760,0.35699982,108240.0,108230.0,0.50122637]
[1751692419002,0.37915496,108240.0,108230.0,0.50122637]
[1751692419604,0.37915496,108240.0,108230.0,0.49198705]
[1751692419822,0.36991692,108240.0,108230.0,0.48274764]
[1751692420009,0.36991692,108240.0,108230.0,0.49198705]
[1751692420208,0.36991692,108240.0,108230.0,0.50122637]
[1751692422518,0.3606782,108240.0,108230.0,0.51046561]
[1751692423728,0.36067803,108240.0,108230.0,0.5104651]
[1751692423949,0.35143922,108240.0,108230.0,0.51046459]
[1751692424549,0.07292999,108240.0,108230.0,0.51046459]
[1751692424962,0.07292999,108240.0,108230.0,0.78897233]
[1751692425403,0.07292999,108240.0,108230.0,0.51046459]
[1751692426241,0.08216837,108240.0,108230.0,0.51046459]
[1751692426646,0.08216837,108240.0,108230.0,0.50122561]
[1751692427511,0.08216837,108240.0,108230.0,0.49198654]
[1751692427715,0.08216837,108240.0,108230.0,0.50122561]
[1751692427942,0.08216837,108240.0,108230.0,0.51046459]
[1751692430300,0.08216837,108240.0,108230.0,0.50122561]
[1751692430704,0.08216837,108240.0,108230.0,0.51046459]
[1751692430916,0.0729299,108240.0,108230.0,0.51046459]
[1751692431120,0.0821682,108240.0,108230.0,0.51046459]
[1751692431751,0.0729299,108240.0,108230.0,0.51046459]
[1751692432135,0.07293069,108240.0,108230.0,0.51046459]
[1751692434769,0.06369248,108240.0,108230.0,0.51046459]
[1751692434968,0.07293069,108240.0,108230.0,0.51046459]
[1751692435643,0.06369248,108240.0,108230.0,0.51046459]
[1751692435768,0.07293069,108240.0,108230.0,0.51046459]
[1751692437670,0.07293061,108240.0,108230.0,0.51046459]
[1751692439468,0.07293061,108240.0,108230.0,0.78897233]
[1751692440531,0.09140729,108240.0,108230.0,0.77973335]
[1751692440767,0.09140729,108240.0,108230.0,0.50122561]
[1751692440983,0.09140729,108240.0,108230.0,0.50122569]
[1751692441187,0.0914072,108240.0,108230.0,0.51046433]
[1751692441977,0.10064567,108240.0,108230.0,0.50122535]
[1751692442133,0.10064567,108240.0,108230.0,0.51046433]
[1751692442556,0.10064567,108240.0,108230.0,0.50122535]
[1751692443048,0.10064567,108240.0,108230.0,0.49198628]
[1751692443254,0.37915401,108240.0,108230.0,0.48274713]
[1751692443456,0.37915401,108240.0,108230.0,0.49198628]
[1751692443660,0.36991537,108240.0,108230.0,0.50122535]
[1751692444247,0.09140763,108240.0,108230.0,0.50122535]
[1751692444451,0.10064627,108240.0,108230.0,0.49198628]
[1751692444664,0.27618271,108240.0,108230.0,0.47350806]
[1751692444845,0.27618271,108240.0,108230.0,0.48274764]
[1751692445083,0.27618271,108240.0,108230.0,0.49198705]
[1751692445315,0.55469045,108240.0,108230.0,0.48274764]
[1751692445864,0.55469045,108240.0,108230.0,0.49198705]
[1751692446074,0.54545224,108240.0,108230.0,0.48274764]
[1751692446494,0.54545224,108240.0,108230.0,0.49198696]
[1751692447292,0.36067767,108240.0,108230.0,0.49198696]
[1751692447533,0.36067767,108240.0,108230.0,0.5012262]
[1751692449310,0.36067767,108240.0,108230.0,0.49198696]
[1751692450429,0.36067767,108240.0,108230.0,0.49198705]
[1751692450627,0.54545224,108240.0,108230.0,0.48274764]
[1751692450830,0.54545224,108240.0,108230.0,0.49198705]
[1751692452319,0.36067767,108240.0,108230.0,0.48274764]
[1751692452521,0.55469096,108240.0,108230.0,0.49198705]
[1751692453672,0.36991639,108240.0,108230.0,0.50122629]
[1751692454764,0.36991639,108240.0,108230.0,0.50122637]
[1751692458168,0.36991639,108240.0,108230.0,0.51046561]
[1751692458372,0.36991639,108240.0,108230.0,0.50122637]
[1751692460765,0.36991639,108240.0,108230.0,0.49198705]
[1751692460965,0.36991639,108240.0,108230.0,0.50122637]
[1751692462238,0.36991639,108240.0,108230.0,0.49198705]
[1751692462789,0.36991639,108240.0,108230.0,0.50122637]
[1751692463386,0.36991639,108240.0,108230.0,0.49198705]
[1751692463593,0.36991639,108240.0,108230.0,0.50122637]
[1751692466286,0.36991639,108240.0,108230.0,0.51046561]
[1751692466442,0.36991639,108240.0,108230.0,0.50122637]
[1751692467060,0.36991639,108240.0,108230.0,0.49198705]
[1751692467560,0.36991639,108240.0,108230.0,0.50122637]
[1751692467797,0.36991639,108240.0,108230.0,0.49198705]
[1751692467934,0.36991639,108240.0,108230.0,0.50122637]
[1751692469328,0.36991639,108240.0,108230.0,0.51046561]
[1751692469827,0.35143903,108240.0,108230.0,0.51046561]
[1751692469962,0.35143903,108240.0,108230.0,0.5104651]
[1751692470716,0.07293129,108240.0,108230.0,0.5104651]
[1751692471383,0.07293129,108240.0,108230.0,0.51046518]
[1751692471677,0.07293129,108240.0,108230.0,0.51046476]
[1751692471901,0.08216993,108240.0,108230.0,0.49198654]
[1751692472083,0.07293129,108240.0,108230.0,0.49198654]
[1751692472285,0.07293129,108240.0,108230.0,0.50122561]
[1751692472729,0.07293129,108240.0,108230.0,0.50122569]
[1751692473172,0.07293129,108240.0,108230.0,0.51046476]
[1751692474046,0.07293129,108240.0,108230.0,0.50122569]
[1751692474485,0.08216984,108240.0,108230.0,0.50122569]
[1751692474686,0.08216984,108240.0,108230.0,0.49198654]
[1751692474889,0.09140848,108240.0,108230.0,0.49198654]
[1751692475407,0.09140848,108240.0,108230.0,0.50122569]
[1751692475755,0.08216984,108240.0,108230.0,0.49198654]
[1751692475924,0.09140856,108240.0,108230.0,0.49198654]
[1751692476155,0.08216984,108240.0,108230.0,0.49198654]
[1751692476362,0.0821695,108240.0,108230.0,0.77973335]
[1751692476564,0.0821695,108240.0,108230.0,0.77973343]
[1751692477994,0.07293095,108240.0,108230.0,0.78897207]
[1751692478712,0.03815444,108240.0,108230.0,0.78897207]
[1751692478917,2.002,108250.0,108240.0,0.21248972]
[1751692479119,2.0241019,108250.0,108240.0,0.86094213]
[1751692479273,2.0241019,108250.0,108240.0,0.58243439]
[1751692480087,2.0241019,108250.0,108240.0,0.86194213]
[1751692480272,2.0241019,108250.0,108240.0,0.58343439]
[1751692480862,2.002,108250.0,108240.0,0.90708298]
[1751692481477,2.002,108250.0,108240.0,0.93539996]
[1751692482146,2.002,108250.0,108240.0,1.2139077]
[1751692482377,2.002,108250.0,108240.0,1.2129077]
[1751692482861,2.002,108250.0,108240.0,1.2149077]
[1751692483075,2.002,108250.0,108240.0,1.6029077]
[1751692483409,2.002,108250.0,108240.0,1.6069077]
[1751692484104,2.002,108250.0,108240.0,1.6099077]
[1751692484715,2.002,108250.0,108240.0,1.6069077]
[1751692485030,2.002,108250.0,108240.0,1.6129077]
[1751692486581,1.58309956,108250.0,108240.0,1.7988677]
[1751692486792,1.27183122,108250.0,108240.0,1.7988677]
[1751692486995,1.21445419,108250.0,108240.0,1.7988677]
[1751692487424,0.60164715,108250.0,108240.0,1.8488677]
[1751692487638,0.32272217,108250.0,108240.0,1.8488677]
[1751692487849,0.27044147,108250.0,108240.0,1.8488677]
[1751692488211,0.0052834,108270.0,108260.0,0.21245046]
[1751692488420,0.0052834,108270.0,108260.0,1.46204287]
[1751692490216,0.0052834,108270.0,108260.0,0.67398739]
[1751692490415,0.0052834,108270.0,108260.0,1.46300287]
[1751692490949,0.0052834,108270.0,108260.0,1.43290287]
[1751692491552,0.0072834,108270.0,108260.0,1.43290287]
[1751692493842,0.0072834,108270.0,108260.0,1.27330729]
[1751692500247,0.0230834,108270.0,108260.0,0.68996739]
[1751692500422,0.0395834,108270.0,108260.0,1.28780814]
[1751692504673,0.0395834,108270.0,108260.0,0.71684814]
[1751692504874,0.0395834,108270.0,108260.0,0.53584739]
[1751692505520,0.04881888,108270.0,108260.0,0.53584739]
[1751692506364,0.0395834,108270.0,108260.0,0.53584739]
[1751692506570,0.0488188,108270.0,108260.0,0.53584739]
[1751692507391,0.05805428,108270.0,108260.0,0.53584739]
[1751692508014,0.05805437,108270.0,108260.0,0.53584739]
[1751692508221,0.0488188,108270.0,108260.0,0.53584739]
[1751692508632,0.05805437,108270.0,108260.0,0.53584739]
[1751692508806,0.0488188,108270.0,108260.0,0.53584739]
[1751692509351,0.06729002,108270.0,108260.0,0.30488739]
[1751692509519,0.06728993,108270.0,108260.0,0.5450839]
[1751692510924,0.05805428,108270.0,108260.0,0.5450839]
[1751692511796,0.06728985,108270.0,108260.0,0.5450839]
[1751692513145,0.05805428,108270.0,108260.0,0.5450839]
[1751692514669,0.06728985,108270.0,108260.0,0.5450839]
[1751692514872,0.07652559,108270.0,108260.0,0.5450839]
[1751692515078,0.06728985,108270.0,108260.0,0.5450839]
[1751692515942,0.06728985,108270.0,108260.0,0.82460873]
[1751692516383,0.06728985,108270.0,108260.0,0.81537231]
[1751692516590,0.07652559,108270.0,108260.0,0.53584748]
[1751692516798,0.07652559,108270.0,108260.0,0.5450839]
[1751692518055,0.06728985,108270.0,108260.0,0.5450839]
[1751692518487,0.07652559,108270.0,108260.0,0.5450839]
[1751692518875,0.08576141,108270.0,108260.0,0.52661097]
[1751692519109,0.08576141,108270.0,108260.0,0.53584748]
[1751692519531,0.08576141,108270.0,108260.0,0.81537231]
[1751692519975,0.08576141,108270.0,108260.0,0.82460873]
[1751692521470,0.08576158,108270.0,108260.0,0.34073114]
[1751692521681,0.08576158,108270.0,108260.0,0.54512449]
[1751692521892,0.36528641,108270.0,108260.0,0.368441]
[1751692522194,0.0857615,108270.0,108260.0,0.554361]
[1751692522398,0.07652559,108270.0,108260.0,0.55436049]
[1751692523234,0.05805428,108270.0,108260.0,0.83388532]
[1751692525768,0.06728993,108270.0,108260.0,0.83388532]
[1751692525990,0.05805428,108270.0,108260.0,0.83388532]
[1751692526427,0.06728985,108270.0,108260.0,0.83388532]
[1751692526641,0.07652567,108270.0,108260.0,0.8246489]
[1751692526792,0.07652567,108270.0,108260.0,0.55436049]
[1751692527334,0.07652559,108270.0,108260.0,0.55436049]
[1751692527732,0.07652559,108270.0,108260.0,0.54512407]
[1751692527932,0.07652559,108270.0,108260.0,0.55436049]
[1751692528426,0.0857615,108270.0,108260.0,0.81541231]
[1751692528650,0.0857615,108270.0,108260.0,0.53588748]
[1751692529077,0.07652559,108270.0,108260.0,0.53588748]
[1751692529263,0.0857615,108270.0,108260.0,0.53588748]
[1751692529411,0.08576141,108270.0,108260.0,0.34073097]
[1751692529613,0.08576268,108270.0,108260.0,0.29565097]
[1751692529804,0.08576268,108270.0,108260.0,0.52661097]
[1751692530234,0.08576268,108270.0,108260.0,0.51737421]
[1751692530475,0.08576268,108270.0,108260.0,0.52661097]
[1751692532502,0.07652652,108270.0,108260.0,0.53584765]
[1751692532715,0.08576268,108270.0,108260.0,0.53584765]
[1751692532873,0.08576268,108270.0,108260.0,0.52661097]
[1751692533082,0.53153957,108270.0,108260.0,0.27717736]
[1751692533241,0.6229765,108270.0,108260.0,0.51737429]
[1751692533440,0.53153957,108270.0,108260.0,0.51737429]
[1751692533641,0.53153957,108270.0,108260.0,0.52661114]
[1751692534124,0.53153957,108270.0,108260.0,0.5358479]
[1751692534354,0.53153957,108270.0,108260.0,0.52661114]
[1751692534544,0.52053976,108270.0,108260.0,0.52661114]
[1751692536871,0.32658023,108270.0,108260.0,0.53584782]
[1751692537871,0.32658023,108270.0,108260.0,0.52661114]
[1751692538076,0.33581639,108270.0,108260.0,0.5358479]
[1751692540435,0.32658023,108270.0,108260.0,0.54508458]
[1751692540825,0.32658023,108270.0,108260.0,0.5358479]
[1751692541054,0.32658023,108270.0,108260.0,0.54508458]
[1751692541777,0.33581639,108270.0,108260.0,0.54508458]
[1751692542153,0.32658023,108270.0,108260.0,0.54508458]
[1751692542719,0.0470554,108270.0,108260.0,0.55432075]
[1751692543123,0.0470554,108270.0,108260.0,0.54508424]
[1751692543805,0.32658023,108270.0,108260.0,0.54508424]
[1751692544206,0.32658023,108270.0,108260.0,0.53584765]
[1751692544619,0.32658023,108270.0,108260.0,0.51737438]
[1751692544819,0.05629148,108270.0,108260.0,0.52661131]
[1751692545066,0.33581631,108270.0,108260.0,0.53584799]
[1751692546717,0.52053968,108270.0,108260.0,0.53584816]
[1751692546934,0.33581631,108270.0,108260.0,0.54508484]
[1751692547277,0.34505247,108270.0,108260.0,0.54508492]
[1751692547491,0.34505247,108270.0,108260.0,0.5543216]
[1751692548203,0.34505247,108270.0,108260.0,0.54508492]
[1751692548404,0.34505247,108270.0,108260.0,0.5543216]
[1751692548948,0.34505247,108270.0,108260.0,0.54508492]
[1751692549338,0.34505247,108270.0,108260.0,0.53584816]
[1751692549534,0.34505247,108270.0,108260.0,0.54508492]
[1751692550185,0.52054002,108270.0,108260.0,0.53584816]
[1751692550752,0.52054002,108270.0,108260.0,0.54508492]
[1751692551579,0.33581665,108270.0,108260.0,0.5543216]
[1751692552951,0.05629182,108270.0,108260.0,0.5543216]
[1751692555287,0.05629182,108270.0,108260.0,0.54508492]
[1751692555707,0.05629182,108270.0,108260.0,0.5543216]
[1751692556537,0.05629182,108270.0,108260.0,0.54508492]
[1751692557393,0.05629182,108270.0,108260.0,0.53584816]
[1751692557611,0.05629182,108270.0,108260.0,0.54508492]
[1751692558579,0.05629182,108270.0,108260.0,0.5543216]
[1751692558994,0.05629182,108270.0,108260.0,0.54508492]
[1751692560536,0.24101519,108270.0,108260.0,0.52661131]
[1751692560864,0.51786629,108270.0,108260.0,0.09243693]
[1751692561071,0.53996089,108270.0,108260.0,0.09243693]
[1751692561528,1.18717877,108270.0,108260.0,0.001]
[1751692561746,1.26036847,108270.0,108260.0,0.001]
[1751692561961,0.23513264,108250.0,108240.0,0.04708]
[1751692562165,0.55664624,108250.0,108240.0,0.27931693]
[1751692562377,0.57872431,108250.0,108240.0,0.27931693]
[1751692562818,0.53673554,108250.0,108240.0,0.27931693]
[1751692563458,0.53773554,108250.0,108240.0,0.27931693]
[1751692564583,0.53773554,108250.0,108240.0,0.28131693]
[1751692564905,0.53773554,108250.0,108240.0,0.27931693]
[1751692567181,0.51565747,108250.0,108240.0,0.27931693]
[1751692567592,0.53768918,108250.0,108240.0,0.27931693]
[1751692568268,0.51565747,108250.0,108240.0,0.27931693]
[1751692574959,0.23613264,108250.0,108240.0,0.27931693]
[1751692575152,0.51565747,108250.0,108240.0,0.27931693]
[1751692577390,0.51565747,108250.0,108240.0,0.4640915]
[1751692584295,0.5376905,108250.0,108240.0,0.4640915]
[1751692586750,0.25816567,108250.0,108240.0,0.4640915]
[1751692586965,0.51565747,108250.0,108240.0,0.4640915]
[1751692587183,0.5376905,108250.0,108240.0,0.4640915]
[1751692589504,0.5376905,108250.0,108240.0,0.3640915]
[1751692589921,0.5376905,108250.0,108240.0,0.09143693]
[1751692590129,0.5376905,108250.0,108240.0,0.27735693]
[1751692591193,0.54699637,108250.0,108240.0,0.27735693]
[1751692591413,0.6384333,108250.0,108240.0,0.27735693]
[1751692593446,0.6384333,108250.0,108240.0,0.09143693]
[1751692599498,0.66612635,108250.0,108240.0,0.09143693]
[1751692601636,0.65682048,108250.0,108240.0,0.09143693]
[1751692601840,0.56538355,108250.0,108240.0,0.09143693]
[1751692605406,0.57455319,108250.0,108240.0,0.09143693]
[1751692607773,0.91455319,108250.0,108240.0,0.09143693]
[1751692608143,0.95151952,108250.0,108240.0,0.09143693]
[1751692608352,1.04295645,108250.0,108240.0,0.09143693]
[1751692609858,1.22887645,108250.0,108240.0,0.09143693]
[1751692611230,1.19191012,108250.0,108240.0,0.09143693]
[1751692616710,0.82094836,108250.0,108240.0,0.09143693]
[1751692616902,1.10047319,108250.0,108240.0,0.09143693]
[1751692617949,0.62585872,108250.0,108240.0,0.09143693]
[1751692618153,0.60955872,108250.0,108240.0,0.09143693]
[1751692619313,0.90438355,108250.0,108240.0,0.09143693]
[1751692619931,1.09995797,108250.0,108240.0,0.09143693]
[1751692620374,0.91387797,108250.0,108240.0,0.09143693]
[1751692620592,1.09999797,108250.0,108240.0,0.09143693]
[1751692622321,0.01847822,108230.0,108220.0,0.72853739]
[1751692622466,0.02771763,108230.0,108220.0,0.84506123]
[1751692622677,0.02771763,108230.0,108220.0,0.67364123]
[1751692622876,0.02771763,108230.0,108220.0,0.62856123]
[1751692623077,0.02771763,108230.0,108220.0,0.67364123]
[1751692623477,0.02771763,108230.0,108220.0,0.67664123]
[1751692623855,0.03695712,108230.0,108220.0,0.67664123]
[1751692624060,0.03695712,108230.0,108220.0,0.67764123]
[1751692625219,0.543027,108230.0,108220.0,0.14584741]
[1751692625361,0.26350217,108230.0,108220.0,0.14584741]
[1751692626244,0.26350217,108230.0,108220.0,0.14284741]
[1751692626803,0.26350217,108230.0,108220.0,0.09776741]
[1751692626804,0.26450217,108230.0,108220.0,0.09776741]
[1751692627026,0.23617054,108230.0,108220.0,0.09776741]
[1751692627231,0.23617054,108230.0,108220.0,0.37729224]
[1751692628616,0.23617054,108230.0,108220.0,0.37629224]
[1751692628814,0.23717054,108230.0,108220.0,0.09676741]
[1751692629412,0.23617054,108230.0,108220.0,0.09676741]
[1751692629607,0.23617054,108230.0,108220.0,0.28157613]
[1751692630056,0.22693113,108230.0,108220.0,0.28157613]
[1751692631110,0.22793113,108230.0,108220.0,0.28157613]
[1751692631289,0.22793113,108230.0,108220.0,0.29081648]
[1751692631851,0.22793113,108230.0,108220.0,0.57034131]
[1751692632262,0.25000978,108230.0,108220.0,0.57034131]
[1751692632887,0.25000978,108230.0,108220.0,0.57958157]
[1751692633473,0.25000978,108230.0,108220.0,0.57034131]
[1751692635926,0.25000978,108230.0,108220.0,0.57958157]
[1751692636132,0.25000978,108230.0,108220.0,0.58882166]
[1751692636333,0.25000978,108230.0,108220.0,0.57958157]
[1751692639548,0.23380978,108230.0,108220.0,0.57958157]
[1751692639960,0.24950978,108230.0,108220.0,0.57958157]
[1751692640853,0.24950978,108230.0,108220.0,0.58882174]
[1751692645692,0.24950978,108230.0,108220.0,0.30929691]
[1751692645916,0.24950978,108230.0,108220.0,0.58882174]
[1751692648084,0.24950978,108230.0,108220.0,0.30005674]
[1751692648293,0.24950978,108230.0,108220.0,0.57958157]
[1751692648924,0.24950978,108230.0,108220.0,0.58882174]
[1751692651966,0.24950978,108230.0,108220.0,0.59806183]
[1751692655590,0.24950978,108230.0,108220.0,0.58882174]
[1751692657102,0.24950978,108230.0,108220.0,0.57958157]
[1751692657510,0.24950978,108230.0,108220.0,0.30005674]
[1751692657903,0.31324486,108230.0,108220.0,0.30005674]
[1751692658301,0.31324486,108230.0,108220.0,0.57958157]
[1751692658527,0.24950978,108230.0,108220.0,0.57958157]
[1751692659551,0.24027029,108230.0,108220.0,0.57034131]
[1751692660567,0.24027029,108230.0,108220.0,0.57958157]
[1751692660774,0.24027029,108230.0,108220.0,0.58882174]
[1751692661172,0.24027029,108230.0,108220.0,0.57958157]
[1751692661378,0.24027029,108230.0,108220.0,0.57034131]
[1751692661939,0.24027029,108230.0,108220.0,0.09676741]
[1751692664200,0.51979512,108230.0,108220.0,0.09676741]
[1751692666250,0.24027029,108230.0,108220.0,0.10600784]
[1751692666688,0.24027029,108230.0,108220.0,0.09676741]
[1751692666891,0.51979512,108230.0,108220.0,0.09676741]
[1751692667011,0.24027029,108230.0,108220.0,0.09676741]
[1751692667470,0.51979512,108230.0,108220.0,0.09676741]
[1751692670444,0.51979512,108230.0,108220.0,0.28157613]
[1751692670656,0.51979512,108230.0,108220.0,0.30005691]
[1751692671357,0.51979512,108230.0,108220.0,0.29081656]
[1751692672640,0.24027029,108230.0,108220.0,0.29081656]
[1751692673342,0.24027029,108230.0,108220.0,0.30005691]
[1751692673548,0.24027029,108230.0,108220.0,0.30929717]
[1751692673955,0.24027029,108230.0,108220.0,0.30005691]
[1751692674640,0.24027029,108230.0,108220.0,0.28157613]
[1751692675262,0.59302268,108230.0,108220.0,0.09676741]
[1751692677537,0.77898268,108230.0,108220.0,0.09676741]
[1751692680191,0.70575512,108230.0,108220.0,0.09676741]
[1751692691298,0.70575512,108230.0,108220.0,0.28157613]
[1751692691434,0.43546987,108230.0,108220.0,0.29081656]
[1751692691647,0.7149947,108230.0,108220.0,0.29081656]
[1751692691846,0.7149947,108230.0,108220.0,0.28157613]
[1751692693612,0.7149947,108230.0,108220.0,0.29081656]